[Event "December 19 Late 2023"]
[Site "https://www.chess.com"]
[Date "2023.12.19"]
[Round "8"]
[White "Livaic, Leon"]
[Black "Sabuk, Piotr"]
[Result "1-0"]
[Board "25"]
[TimeControl "180+1"]
[WhiteFideId "14531534"]
[BlackFideId "1137565"]
[WhiteElo "2541"]
[BlackElo "2276"]
[WhiteTeam "CRO"]
[BlackTeam "POL"]
[WhiteClock "0:00:33"]
[BlackClock "0:00:06"]

1. d4 {[%clk 0:03:00]}  d5 {[%clk 0:02:59]} 2. c4 {[%clk 0:03:00]}  e6 {[%clk 0:03:00]} 3. Nf3 {[%clk 0:03:00]}  Nf6 {[%clk 0:03:00]} 4. Nc3 {[%clk 0:02:58]}  Bb4 {[%clk 0:02:57]} 5. Bg5 {[%clk 0:02:58]}  h6 {[%clk 0:02:56]} 6. Bxf6 {[%clk 0:02:59]}  Qxf6 {[%clk 0:02:56]} 7. e3 {[%clk 0:02:59]}  O-O {[%clk 0:02:54]} 8. Rc1 {[%clk 0:03:00]}  Nd7 {[%clk 0:02:40]} 9. Qb3 {[%clk 0:02:55]}  Bxc3+ {[%clk 0:02:37]} 10. Qxc3 {[%clk 0:02:56]}  c6 {[%clk 0:02:34]} 11. Bd3 {[%clk 0:02:56]}  Re8 {[%clk 0:02:23]} 12. cxd5 {[%clk 0:02:45]}  exd5 {[%clk 0:02:22]} 13. O-O {[%clk 0:02:45]}  Nb6 {[%clk 0:02:18]} 14. Ne5 {[%clk 0:02:45]}  Bf5 {[%clk 0:02:17]} 15. Be2 {[%clk 0:02:36]}  Nc8 {[%clk 0:02:15]} 16. b4 {[%clk 0:02:29]}  a6 {[%clk 0:02:14]} 17. a4 {[%clk 0:02:28]}  Nd6 {[%clk 0:02:08]} 18. Rfd1 {[%clk 0:02:22]}  Qe6 {[%clk 0:01:53]} 19. Qc5 {[%clk 0:02:10]}  f6 {[%clk 0:01:46]} 20. Nd3 {[%clk 0:02:04]}  Nc4 {[%clk 0:01:38]} 21. Nf4 {[%clk 0:01:59]}  Qd7 {[%clk 0:01:21]} 22. Bxc4 {[%clk 0:01:57]}  dxc4 {[%clk 0:01:20]} 23. Qxc4+ {[%clk 0:01:44]}  Kh8 {[%clk 0:01:17]} 24. d5 {[%clk 0:01:41]}  Rad8 {[%clk 0:01:16]} 25. a5 {[%clk 0:01:30]}  Be4 {[%clk 0:01:06]} 26. d6 {[%clk 0:01:23]}  g5 {[%clk 0:01:05]} 27. Nh5 {[%clk 0:01:16]}  Re6 {[%clk 0:01:05]} 28. Nxf6 {[%clk 0:01:11]}  Rxf6 {[%clk 0:01:01]} 29. Qxe4 {[%clk 0:01:11]}  Rxd6 {[%clk 0:00:59]} 30. Rxd6 {[%clk 0:01:09]}  Qxd6 {[%clk 0:01:00]} 31. h4 {[%clk 0:01:02]}  Kg7 {[%clk 0:00:56]} 32. g3 {[%clk 0:00:58]}  Rd7 {[%clk 0:00:40]} 33. hxg5 {[%clk 0:00:57]}  hxg5 {[%clk 0:00:40]} 34. Rc5 {[%clk 0:00:57]}  Qf6 {[%clk 0:00:35]} 35. Qg4 {[%clk 0:00:50]}  Rd5 {[%clk 0:00:29]} 36. Rxd5 {[%clk 0:00:50]}  cxd5 {[%clk 0:00:30]} 37. Qd7+ {[%clk 0:00:50]}  Kg6 {[%clk 0:00:20]} 38. Qxb7 {[%clk 0:00:43]}  Qf3 {[%clk 0:00:19]} 39. Qxa6+ {[%clk 0:00:43]}  Kg7 {[%clk 0:00:19]} 40. Qd3 {[%clk 0:00:39]}  g4 {[%clk 0:00:14]} 41. a6 {[%clk 0:00:38]}  Kh6 {[%clk 0:00:13]} 42. a7 {[%clk 0:00:35]}  d4 {[%clk 0:00:06]} 43. Qxd4 {[%clk 0:00:33]} 1-0

[Event "December 19 Late 2023"]
[Site "https://www.chess.com"]
[Date "2023.12.19"]
[Round "8"]
[White "Dourerassou, Jonathan"]
[Black "Khater, Sherif"]
[Result "1-0"]
[Board "26"]
[TimeControl "180+1"]
[WhiteFideId "628050"]
[BlackFideId "2034280"]
[WhiteElo "2499"]
[BlackElo "2569"]
[WhiteTeam "FRA"]
[BlackTeam "USA"]
[WhiteClock "0:00:09"]
[BlackClock "0:00:00"]

1. d4 {[%clk 0:03:00]}  a6 {[%clk 0:02:59]} 2. e4 {[%clk 0:02:59]}  c6 {[%clk 0:02:59]} 3. Nc3 {[%clk 0:02:57]}  d5 {[%clk 0:03:00]} 4. Nf3 {[%clk 0:02:56]}  dxe4 {[%clk 0:03:00]} 5. Nxe4 {[%clk 0:02:56]}  Nf6 {[%clk 0:03:01]} 6. Nxf6+ {[%clk 0:02:55]}  exf6 {[%clk 0:03:02]} 7. Bd3 {[%clk 0:02:55]}  Bd6 {[%clk 0:03:02]} 8. O-O {[%clk 0:02:54]}  O-O {[%clk 0:03:03]} 9. h3 {[%clk 0:02:51]}  Nd7 {[%clk 0:02:59]} 10. c4 {[%clk 0:02:47]}  Re8 {[%clk 0:02:59]} 11. Bc2 {[%clk 0:02:45]}  Nf8 {[%clk 0:02:59]} 12. Be3 {[%clk 0:02:43]}  Be6 {[%clk 0:02:59]} 13. b3 {[%clk 0:02:43]}  Qd7 {[%clk 0:02:59]} 14. Re1 {[%clk 0:02:06]}  Ng6 {[%clk 0:02:49]} 15. Qd3 {[%clk 0:02:00]}  Bxh3 {[%clk 0:02:47]} 16. gxh3 {[%clk 0:01:56]}  Qxh3 {[%clk 0:02:48]} 17. Qf5 {[%clk 0:01:55]}  Qxf5 {[%clk 0:02:01]} 18. Bxf5 {[%clk 0:01:56]}  Re7 {[%clk 0:01:55]} 19. Bd2 {[%clk 0:01:53]}  Rae8 {[%clk 0:01:55]} 20. Re6 {[%clk 0:01:53]}  fxe6 {[%clk 0:01:55]} 21. Bd3 {[%clk 0:01:51]}  f5 {[%clk 0:01:52]} 22. Re1 {[%clk 0:01:49]}  Bf4 {[%clk 0:01:52]} 23. Bb4 {[%clk 0:01:48]}  Rd7 {[%clk 0:01:52]} 24. Bxf5 {[%clk 0:01:48]}  Kf7 {[%clk 0:01:42]} 25. Bg4 {[%clk 0:01:43]}  b6 {[%clk 0:01:35]} 26. Re4 {[%clk 0:01:43]}  Bd6 {[%clk 0:01:28]} 27. Ng5+ {[%clk 0:01:36]}  Kf6 {[%clk 0:01:24]} 28. Nxh7+ {[%clk 0:01:36]}  Kf7 {[%clk 0:01:25]} 29. Ng5+ {[%clk 0:01:31]}  Kf6 {[%clk 0:01:25]} 30. Bd2 {[%clk 0:01:18]}  Nf8 {[%clk 0:01:06]} 31. Re2 {[%clk 0:01:04]}  g6 {[%clk 0:00:53]} 32. d5 {[%clk 0:01:02]}  cxd5 {[%clk 0:00:46]} 33. cxd5 {[%clk 0:01:02]}  Be5 {[%clk 0:00:44]} 34. dxe6 {[%clk 0:00:58]}  Rxd2 {[%clk 0:00:45]} 35. Ne4+ {[%clk 0:00:58]}  Kg7 {[%clk 0:00:43]} 36. Nxd2 {[%clk 0:00:58]}  Bd6 {[%clk 0:00:38]} 37. Nc4 {[%clk 0:00:56]}  Bc5 {[%clk 0:00:37]} 38. Kf1 {[%clk 0:00:51]}  Kf6 {[%clk 0:00:37]} 39. b4 {[%clk 0:00:44]}  Bd4 {[%clk 0:00:30]} 40. Nd6 {[%clk 0:00:44]}  Re7 {[%clk 0:00:24]} 41. Ne4+ {[%clk 0:00:42]}  Kg7 {[%clk 0:00:24]} 42. Ng5 {[%clk 0:00:39]}  Kf6 {[%clk 0:00:21]} 43. f4 {[%clk 0:00:38]}  b5 {[%clk 0:00:16]} 44. Kg2 {[%clk 0:00:33]}  Bb6 {[%clk 0:00:16]} 45. Kf3 {[%clk 0:00:33]}  Bc7 {[%clk 0:00:16]} 46. Rc2 {[%clk 0:00:32]}  Bb6 {[%clk 0:00:15]} 47. Rc8 {[%clk 0:00:29]}  Kg7 {[%clk 0:00:13]} 48. Rc6 {[%clk 0:00:28]}  Bc7 {[%clk 0:00:12]} 49. Rxa6 {[%clk 0:00:28]}  Nh7 {[%clk 0:00:12]} 50. Ne4 {[%clk 0:00:14]}  Nf6 {[%clk 0:00:10]} 51. Nxf6 {[%clk 0:00:14]}  Kxf6 {[%clk 0:00:10]} 52. Rc6 {[%clk 0:00:14]}  Bd8 {[%clk 0:00:07]} 53. Rc8 {[%clk 0:00:15]}  Bc7 {[%clk 0:00:08]} 54. Ra8 {[%clk 0:00:14]}  Bd6 {[%clk 0:00:08]} 55. a3 {[%clk 0:00:13]}  Rc7 {[%clk 0:00:08]} 56. Ra6 {[%clk 0:00:12]}  Rc3+ {[%clk 0:00:08]} 57. Ke4 {[%clk 0:00:09]}  Rc4+ {[%clk 0:00:08]} 58. Kd5 {[%clk 0:00:10]}  Bxf4 {[%clk 0:00:08]} 59. Be2 {[%clk 0:00:09]}  Rc2 {[%clk 0:00:06]} 60. Bxb5 {[%clk 0:00:09]}  Rd2+ {[%clk 0:00:06]} 61. Ke4 {[%clk 0:00:09]}  Bd6 {[%clk 0:00:04]} 62. Bc4 {[%clk 0:00:09]}  g5 {[%clk 0:00:03]} 63. Ra7 {[%clk 0:00:09]}  g4 {[%clk 0:00:03]} 64. Rf7+ {[%clk 0:00:09]}  Kg6 {[%clk 0:00:03]} 65. Rd7 {[%clk 0:00:09]}  g3 {[%clk 0:00:00]} 66. e7 {[%clk 0:00:09]} 1-0

[Event "December 19 Late 2023"]
[Site "https://www.chess.com"]
[Date "2023.12.19"]
[Round "8"]
[White "Mikaelyan, Arman"]
[Black "Rogov, Matfey"]
[Result "1-0"]
[Board "27"]
[TimeControl "180+1"]
[WhiteFideId "13304852"]
[BlackFideId "44191308"]
[WhiteElo "2445"]
[BlackElo "2057"]
[WhiteTeam "ARM"]
[BlackTeam "RUS"]
[WhiteClock "0:00:06"]
[BlackClock "0:00:03"]

1. d4 {[%clk 0:03:00]}  e6 {[%clk 0:02:59]} 2. c4 {[%clk 0:03:01]}  Nf6 {[%clk 0:02:59]} 3. g3 {[%clk 0:03:01]}  d5 {[%clk 0:02:58]} 4. Bg2 {[%clk 0:03:01]}  dxc4 {[%clk 0:02:58]} 5. Nf3 {[%clk 0:03:00]}  Nc6 {[%clk 0:02:58]} 6. O-O {[%clk 0:02:59]}  Rb8 {[%clk 0:02:57]} 7. e3 {[%clk 0:02:36]}  b5 {[%clk 0:02:53]} 8. Qe2 {[%clk 0:02:20]}  Bb4 {[%clk 0:02:45]} 9. a3 {[%clk 0:01:57]}  Be7 {[%clk 0:02:45]} 10. Nbd2 {[%clk 0:01:50]}  O-O {[%clk 0:02:40]} 11. b3 {[%clk 0:01:50]}  c3 {[%clk 0:02:10]} 12. Nb1 {[%clk 0:01:49]}  b4 {[%clk 0:02:09]} 13. axb4 {[%clk 0:01:42]}  Bxb4 {[%clk 0:02:10]} 14. Ba3 {[%clk 0:01:42]}  a5 {[%clk 0:02:09]} 15. Qc4 {[%clk 0:01:27]}  Qd5 {[%clk 0:01:58]} 16. Rc1 {[%clk 0:00:48]}  Ne4 {[%clk 0:01:25]} 17. Ne1 {[%clk 0:00:49]}  Qf5 {[%clk 0:00:36]} 18. f3 {[%clk 0:00:35]}  Nd2 {[%clk 0:00:26]} 19. Qxc6 {[%clk 0:00:34]}  Nxb1 {[%clk 0:00:25]} 20. Bxb4 {[%clk 0:00:30]}  axb4 {[%clk 0:00:20]} 21. Raxb1 {[%clk 0:00:31]}  e5 {[%clk 0:00:14]} 22. e4 {[%clk 0:00:25]}  Qg5 {[%clk 0:00:14]} 23. dxe5 {[%clk 0:00:23]}  Qxe5 {[%clk 0:00:14]} 24. Qd5 {[%clk 0:00:20]}  Qxd5 {[%clk 0:00:12]} 25. exd5 {[%clk 0:00:21]}  Bf5 {[%clk 0:00:12]} 26. Ra1 {[%clk 0:00:21]}  Rfe8 {[%clk 0:00:10]} 27. Nc2 {[%clk 0:00:19]}  Bd3 {[%clk 0:00:05]} 28. Nd4 {[%clk 0:00:18]}  Rbd8 {[%clk 0:00:04]} 29. f4 {[%clk 0:00:19]}  h5 {[%clk 0:00:04]} 30. Nc6 {[%clk 0:00:19]}  Rd6 {[%clk 0:00:04]} 31. Nxb4 {[%clk 0:00:20]}  Be4 {[%clk 0:00:03]} 32. Rxc3 {[%clk 0:00:19]}  Bxg2 {[%clk 0:00:04]} 33. Kxg2 {[%clk 0:00:20]}  Re4 {[%clk 0:00:04]} 34. Rc4 {[%clk 0:00:18]}  Re2+ {[%clk 0:00:04]} 35. Kf3 {[%clk 0:00:18]}  Rxh2 {[%clk 0:00:03]} 36. Rxc7 {[%clk 0:00:18]}  Rh3 {[%clk 0:00:03]} 37. Ra8+ {[%clk 0:00:16]}  Kh7 {[%clk 0:00:03]} 38. Ra6 {[%clk 0:00:17]}  Rxa6 {[%clk 0:00:01]} 39. Nxa6 {[%clk 0:00:17]}  h4 {[%clk 0:00:02]} 40. d6 {[%clk 0:00:10]}  Rxg3+ {[%clk 0:00:03]} 41. Kf2 {[%clk 0:00:11]}  Rxb3 {[%clk 0:00:03]} 42. Nc5 {[%clk 0:00:05]}  Rb2+ {[%clk 0:00:03]} 43. Kg1 {[%clk 0:00:05]}  h3 {[%clk 0:00:02]} 44. d7 {[%clk 0:00:04]}  Rd2 {[%clk 0:00:03]} 45. Nb7 {[%clk 0:00:05]}  h2+ {[%clk 0:00:03]} 46. Kh1 {[%clk 0:00:05]}  Kg6 {[%clk 0:00:02]} 47. d8=Q {[%clk 0:00:05]}  Rxd8 {[%clk 0:00:02]} 48. Nxd8 {[%clk 0:00:06]}  Kf6 {[%clk 0:00:03]} 49. Nxf7 {[%clk 0:00:06]} 1-0

[Event "December 19 Late 2023"]
[Site "https://www.chess.com"]
[Date "2023.12.19"]
[Round "8"]
[White "Seemann, Jakub"]
[Black "mightysmasher"]
[Result "0-1"]
[Board "28"]
[TimeControl "180+1"]
[WhiteFideId "21874697"]
[WhiteElo "2332"]
[BlackElo "2547"]
[WhiteTeam "POL"]
[WhiteClock "0:00:24"]
[BlackClock "0:00:05"]

1. d4 {[%clk 0:03:00]}  d5 {[%clk 0:02:59]} 2. Bf4 {[%clk 0:03:01]}  Nf6 {[%clk 0:02:58]} 3. e3 {[%clk 0:03:01]}  e6 {[%clk 0:02:58]} 4. Nf3 {[%clk 0:03:02]}  Bd6 {[%clk 0:02:59]} 5. Nbd2 {[%clk 0:03:02]}  Bxf4 {[%clk 0:02:58]} 6. exf4 {[%clk 0:03:03]}  O-O {[%clk 0:02:59]} 7. Bd3 {[%clk 0:03:04]}  b6 {[%clk 0:02:59]} 8. c3 {[%clk 0:03:04]}  Bb7 {[%clk 0:03:00]} 9. O-O {[%clk 0:03:04]}  Nbd7 {[%clk 0:03:00]} 10. Re1 {[%clk 0:03:04]}  c5 {[%clk 0:03:00]} 11. g3 {[%clk 0:03:05]}  Rc8 {[%clk 0:03:00]} 12. h4 {[%clk 0:03:03]}  cxd4 {[%clk 0:02:53]} 13. Nxd4 {[%clk 0:03:03]}  Nc5 {[%clk 0:02:52]} 14. Bc2 {[%clk 0:03:03]}  a5 {[%clk 0:02:49]} 15. Qe2 {[%clk 0:03:03]}  Nce4 {[%clk 0:02:46]} 16. N2f3 {[%clk 0:03:00]}  Qc7 {[%clk 0:02:42]} 17. Ne5 {[%clk 0:03:01]}  Nd7 {[%clk 0:02:37]} 18. Kg2 {[%clk 0:03:00]}  Nxe5 {[%clk 0:02:36]} 19. fxe5 {[%clk 0:03:00]}  Qxe5 {[%clk 0:02:34]} 20. Bxe4 {[%clk 0:02:52]}  dxe4 {[%clk 0:02:33]} 21. Qe3 {[%clk 0:02:52]}  f5 {[%clk 0:02:31]} 22. Ne2 {[%clk 0:02:51]}  h6 {[%clk 0:02:26]} 23. h5 {[%clk 0:02:50]}  Rf7 {[%clk 0:02:14]} 24. Rad1 {[%clk 0:02:46]}  Rcf8 {[%clk 0:02:09]} 25. Nf4 {[%clk 0:02:45]}  Qf6 {[%clk 0:02:06]} 26. Rd6 {[%clk 0:02:43]}  Re8 {[%clk 0:02:00]} 27. Rxb6 {[%clk 0:02:40]}  Ba8 {[%clk 0:01:58]} 28. Rd1 {[%clk 0:02:38]}  Rfe7 {[%clk 0:01:25]} 29. Rdd6 {[%clk 0:02:34]}  a4 {[%clk 0:01:23]} 30. a3 {[%clk 0:02:33]}  Qf7 {[%clk 0:01:21]} 31. Ng6 {[%clk 0:02:31]}  Rc7 {[%clk 0:01:13]} 32. Ne5 {[%clk 0:02:30]}  Qf6 {[%clk 0:01:07]} 33. Rb5 {[%clk 0:02:23]}  Qe7 {[%clk 0:00:59]} 34. Rdb6 {[%clk 0:02:18]}  Bd5 {[%clk 0:00:51]} 35. Rb8 {[%clk 0:02:17]}  Rcc8 {[%clk 0:00:47]} 36. Rxc8 {[%clk 0:02:13]}  Rxc8 {[%clk 0:00:47]} 37. Ra5 {[%clk 0:02:07]}  Qc7 {[%clk 0:00:43]} 38. Rxd5 {[%clk 0:01:53]}  exd5 {[%clk 0:00:42]} 39. Qd4 {[%clk 0:01:54]}  Rd8 {[%clk 0:00:36]} 40. Ng6 {[%clk 0:01:51]}  Qd7 {[%clk 0:00:35]} 41. Nf4 {[%clk 0:01:49]}  Qc6 {[%clk 0:00:28]} 42. Kh2 {[%clk 0:01:47]}  Qd7 {[%clk 0:00:25]} 43. Qe5 {[%clk 0:01:45]}  Re8 {[%clk 0:00:23]} 44. Qd4 {[%clk 0:01:45]}  Rd8 {[%clk 0:00:19]} 45. Kg1 {[%clk 0:01:45]}  Rb8 {[%clk 0:00:16]} 46. Nxd5 {[%clk 0:01:43]}  Qf7 {[%clk 0:00:16]} 47. Nf4 {[%clk 0:01:37]}  Rxb2 {[%clk 0:00:14]} 48. Ng6 {[%clk 0:01:37]}  Rb8 {[%clk 0:00:13]} 49. Qxa4 {[%clk 0:01:36]}  Re8 {[%clk 0:00:13]} 50. Qd4 {[%clk 0:01:34]}  Qf6 {[%clk 0:00:09]} 51. Qd7 {[%clk 0:01:29]}  Qf7 {[%clk 0:00:09]} 52. Qd4 {[%clk 0:01:23]}  Qf6 {[%clk 0:00:09]} 53. Qe3 {[%clk 0:01:21]}  Rd8 {[%clk 0:00:09]} 54. a4 {[%clk 0:01:09]}  Qg5 {[%clk 0:00:07]} 55. Nf4 {[%clk 0:01:06]}  Rd1+ {[%clk 0:00:06]} 56. Kg2 {[%clk 0:01:06]}  Qg4 {[%clk 0:00:06]} 57. c4 {[%clk 0:00:57]}  Ra1 {[%clk 0:00:06]} 58. c5 {[%clk 0:00:45]}  Qd1 {[%clk 0:00:05]} 59. f3 {[%clk 0:00:29]}  Qh1+ {[%clk 0:00:05]} 60. Kf2 {[%clk 0:00:30]}  Qh2+ {[%clk 0:00:05]} 61. Ng2 {[%clk 0:00:29]}  Ra2+ {[%clk 0:00:05]} 62. Ke1 {[%clk 0:00:24]}  Qh1+ {[%clk 0:00:05]} 0-1

[Event "December 19 Late 2023"]
[Site "https://www.chess.com"]
[Date "2023.12.19"]
[Round "8"]
[White "Rustemov, Alexander"]
[Black "Van Roon, Sjoerd"]
[Result "1-0"]
[Board "29"]
[TimeControl "180+1"]
[WhiteFideId "4119002"]
[BlackFideId "1051075"]
[WhiteElo "2796"]
[BlackElo "2180"]
[WhiteTeam "RUS"]
[BlackTeam "NED"]
[WhiteClock "0:01:00"]
[BlackClock "0:00:00"]

1. d4 {[%clk 0:03:00]}  d5 {[%clk 0:02:59]} 2. c4 {[%clk 0:03:01]}  c6 {[%clk 0:02:58]} 3. Nc3 {[%clk 0:03:01]}  Nf6 {[%clk 0:02:57]} 4. e3 {[%clk 0:03:02]}  e6 {[%clk 0:02:55]} 5. Nf3 {[%clk 0:03:02]}  Nbd7 {[%clk 0:02:54]} 6. Qc2 {[%clk 0:03:02]}  Bd6 {[%clk 0:02:54]} 7. Bd2 {[%clk 0:03:03]}  O-O {[%clk 0:02:53]} 8. O-O-O {[%clk 0:03:03]}  a5 {[%clk 0:02:51]} 9. e4 {[%clk 0:03:03]}  dxe4 {[%clk 0:02:50]} 10. Nxe4 {[%clk 0:03:04]}  Nxe4 {[%clk 0:02:50]} 11. Qxe4 {[%clk 0:03:04]}  Nf6 {[%clk 0:02:50]} 12. Qh4 {[%clk 0:03:04]}  b5 {[%clk 0:02:43]} 13. c5 {[%clk 0:03:03]}  Be7 {[%clk 0:02:42]} 14. Bd3 {[%clk 0:03:03]}  b4 {[%clk 0:02:21]} 15. Bg5 {[%clk 0:02:51]}  g6 {[%clk 0:02:08]} 16. Ne5 {[%clk 0:02:49]}  Nd5 {[%clk 0:01:51]} 17. Bxe7 {[%clk 0:02:44]}  Qxe7 {[%clk 0:01:51]} 18. Qxe7 {[%clk 0:02:34]}  Nxe7 {[%clk 0:01:52]} 19. Be4 {[%clk 0:02:28]}  Bb7 {[%clk 0:01:52]} 20. Nc4 {[%clk 0:02:27]}  Ba6 {[%clk 0:01:37]} 21. Nd6 {[%clk 0:02:17]}  Ra7 {[%clk 0:01:11]} 22. Rhe1 {[%clk 0:02:15]}  Nc8 {[%clk 0:01:07]} 23. Nxc8 {[%clk 0:02:06]}  Rxc8 {[%clk 0:01:07]} 24. Kd2 {[%clk 0:02:05]}  Bc4 {[%clk 0:01:06]} 25. b3 {[%clk 0:02:02]}  Bd5 {[%clk 0:01:03]} 26. Bxd5 {[%clk 0:02:01]}  cxd5 {[%clk 0:01:03]} 27. a4 {[%clk 0:01:45]}  Kf8 {[%clk 0:00:44]} 28. f4 {[%clk 0:01:44]}  h5 {[%clk 0:00:43]} 29. g3 {[%clk 0:01:41]}  Rc6 {[%clk 0:00:42]} 30. h3 {[%clk 0:01:41]}  Rac7 {[%clk 0:00:39]} 31. g4 {[%clk 0:01:40]}  hxg4 {[%clk 0:00:39]} 32. hxg4 {[%clk 0:01:41]}  Ke7 {[%clk 0:00:38]} 33. Rh1 {[%clk 0:01:41]}  Rc8 {[%clk 0:00:38]} 34. Rh7 {[%clk 0:01:40]}  Rf8 {[%clk 0:00:35]} 35. Rdh1 {[%clk 0:01:39]}  Rcc8 {[%clk 0:00:34]} 36. Ke3 {[%clk 0:01:39]}  Kf6 {[%clk 0:00:30]} 37. R1h6 {[%clk 0:01:37]}  Rg8 {[%clk 0:00:24]} 38. Kf3 {[%clk 0:01:34]}  Rcd8 {[%clk 0:00:14]} 39. Rh1 {[%clk 0:01:33]}  Ke7 {[%clk 0:00:11]} 40. f5 {[%clk 0:01:24]}  gxf5 {[%clk 0:00:10]} 41. gxf5 {[%clk 0:01:24]}  Rgf8 {[%clk 0:00:03]} 42. Kf4 {[%clk 0:01:23]}  Ke8 {[%clk 0:00:01]} 43. fxe6 {[%clk 0:01:18]}  fxe6+ {[%clk 0:00:02]} 44. Ke5 {[%clk 0:01:19]}  Rd7 {[%clk 0:00:02]} 45. Kxe6 {[%clk 0:01:14]}  Rxh7 {[%clk 0:00:02]} 46. Rxh7 {[%clk 0:01:14]}  Rg8 {[%clk 0:00:02]} 47. Kxd5 {[%clk 0:01:09]}  Rg3 {[%clk 0:00:01]} 48. Ra7 {[%clk 0:01:07]}  Rxb3 {[%clk 0:00:01]} 49. Rxa5 {[%clk 0:01:07]}  Ra3 {[%clk 0:00:01]} 50. Ke6 {[%clk 0:01:01]}  Kf8 {[%clk 0:00:00]} 51. c6 {[%clk 0:01:00]} 1-0

[Event "December 19 Late 2023"]
[Site "https://www.chess.com"]
[Date "2023.12.19"]
[Round "8"]
[White "FontVella8"]
[Black "Delorme, Axel"]
[Result "1-0"]
[Board "32"]
[TimeControl "180+1"]
[BlackFideId "632023"]
[WhiteElo "2809"]
[BlackElo "2478"]
[BlackTeam "FRA"]
[WhiteClock "0:01:14"]
[BlackClock "0:00:00"]

1. e4 {[%clk 0:03:00]}  c5 {[%clk 0:02:59]} 2. Nf3 {[%clk 0:03:00]}  d6 {[%clk 0:03:00]} 3. d4 {[%clk 0:02:59]}  cxd4 {[%clk 0:03:01]} 4. Nxd4 {[%clk 0:02:59]}  Nf6 {[%clk 0:03:02]} 5. f3 {[%clk 0:02:59]}  e5 {[%clk 0:03:01]} 6. Nb3 {[%clk 0:03:00]}  d5 {[%clk 0:03:01]} 7. Bg5 {[%clk 0:03:00]}  d4 {[%clk 0:03:02]} 8. c3 {[%clk 0:02:58]}  Nc6 {[%clk 0:03:02]} 9. cxd4 {[%clk 0:02:58]}  Bb4+ {[%clk 0:03:01]} 10. Bd2 {[%clk 0:02:58]}  Nxe4 {[%clk 0:02:45]} 11. Bxb4 {[%clk 0:02:57]}  Qh4+ {[%clk 0:02:45]} 12. g3 {[%clk 0:02:57]}  Nxg3 {[%clk 0:02:45]} 13. hxg3 {[%clk 0:02:56]}  Qxh1 {[%clk 0:02:45]} 14. Bc5 {[%clk 0:02:57]}  Bh3 {[%clk 0:02:44]} 15. N1d2 {[%clk 0:02:55]}  O-O-O {[%clk 0:02:29]} 16. Qc2 {[%clk 0:02:55]}  Bxf1 {[%clk 0:02:24]} 17. O-O-O {[%clk 0:02:54]}  Kb8 {[%clk 0:02:10]} 18. Rxf1 {[%clk 0:02:53]}  Qh6 {[%clk 0:02:10]} 19. Qf5 {[%clk 0:02:42]}  exd4 {[%clk 0:01:57]} 20. Qxf7 {[%clk 0:02:42]}  b6 {[%clk 0:01:34]} 21. Ba3 {[%clk 0:02:35]}  Ne5 {[%clk 0:01:28]} 22. Qf5 {[%clk 0:02:27]}  Qf6 {[%clk 0:01:20]} 23. Qxf6 {[%clk 0:02:21]}  gxf6 {[%clk 0:01:21]} 24. Ne4 {[%clk 0:02:14]}  Nc4 {[%clk 0:01:00]} 25. Be7 {[%clk 0:01:52]}  Rc8 {[%clk 0:00:58]} 26. Kb1 {[%clk 0:01:53]}  f5 {[%clk 0:00:54]} 27. Nd6 {[%clk 0:01:49]}  Nxd6 {[%clk 0:00:50]} 28. Bxd6+ {[%clk 0:01:49]}  Kb7 {[%clk 0:00:51]} 29. Rd1 {[%clk 0:01:40]}  Rcd8 {[%clk 0:00:46]} 30. Rxd4 {[%clk 0:01:38]}  Kc6 {[%clk 0:00:43]} 31. Be5 {[%clk 0:01:38]}  Rhe8 {[%clk 0:00:39]} 32. Kc2 {[%clk 0:01:34]}  Rxd4 {[%clk 0:00:36]} 33. Bxd4 {[%clk 0:01:24]}  Kd5 {[%clk 0:00:33]} 34. Kd3 {[%clk 0:01:24]}  h5 {[%clk 0:00:25]} 35. Bf2 {[%clk 0:01:21]}  Rf8 {[%clk 0:00:10]} 36. f4 {[%clk 0:01:15]}  Re8 {[%clk 0:00:00]} 37. Nd4 {[%clk 0:01:14]} 1-0

[Event "December 19 Late 2023"]
[Site "https://www.chess.com"]
[Date "2023.12.19"]
[Round "8"]
[White "Srinath, Rao S.V."]
[Black "Khlebovich, Alexander"]
[Result "1-0"]
[Board "34"]
[TimeControl "180+1"]
[WhiteFideId "5028876"]
[BlackFideId "4169123"]
[WhiteElo "2198"]
[BlackElo "2334"]
[WhiteTeam "IND"]
[BlackTeam "RUS"]
[WhiteClock "0:00:08"]
[BlackClock "0:00:00"]

1. d4 {[%clk 0:02:31]}  Nf6 {[%clk 0:02:59]} 2. c4 {[%clk 0:02:31]}  g6 {[%clk 0:02:59]} 3. Nf3 {[%clk 0:02:31]}  Bg7 {[%clk 0:02:59]} 4. g3 {[%clk 0:02:32]}  O-O {[%clk 0:02:59]} 5. Bg2 {[%clk 0:02:33]}  d5 {[%clk 0:02:59]} 6. O-O {[%clk 0:02:33]}  c5 {[%clk 0:02:59]} 7. cxd5 {[%clk 0:02:32]}  Nxd5 {[%clk 0:03:00]} 8. e4 {[%clk 0:02:22]}  Nf6 {[%clk 0:02:59]} 9. e5 {[%clk 0:02:19]}  Nd5 {[%clk 0:02:59]} 10. dxc5 {[%clk 0:02:10]}  Nc6 {[%clk 0:02:59]} 11. Re1 {[%clk 0:02:06]}  Ndb4 {[%clk 0:02:57]} 12. Nc3 {[%clk 0:01:47]}  Bf5 {[%clk 0:02:54]} 13. Nh4 {[%clk 0:01:33]}  Be6 {[%clk 0:02:32]} 14. f4 {[%clk 0:01:19]}  Qa5 {[%clk 0:02:19]} 15. Be3 {[%clk 0:01:10]}  Rfd8 {[%clk 0:02:18]} 16. Qe2 {[%clk 0:01:10]}  Nd3 {[%clk 0:02:10]} 17. Red1 {[%clk 0:01:10]}  Nxc5 {[%clk 0:02:08]} 18. Nd5 {[%clk 0:01:01]}  Na4 {[%clk 0:01:55]} 19. b4 {[%clk 0:00:42]}  Nxb4 {[%clk 0:01:55]} 20. Nxe7+ {[%clk 0:00:41]}  Kh8 {[%clk 0:01:51]} 21. a3 {[%clk 0:00:34]}  Nc3 {[%clk 0:01:50]} 22. Rxd8+ {[%clk 0:00:33]}  Rxd8 {[%clk 0:01:48]} 23. Qb2 {[%clk 0:00:29]}  Nd3 {[%clk 0:01:38]} 24. Qxb7 {[%clk 0:00:28]}  Nc5 {[%clk 0:01:24]} 25. Qc6 {[%clk 0:00:20]}  Nb3 {[%clk 0:01:16]} 26. Rf1 {[%clk 0:00:20]}  Ne2+ {[%clk 0:01:13]} 27. Kh1 {[%clk 0:00:19]}  Qxa3 {[%clk 0:01:08]} 28. f5 {[%clk 0:00:19]}  Qxe7 {[%clk 0:01:01]} 29. f6 {[%clk 0:00:20]}  Qd7 {[%clk 0:00:52]} 30. fxg7+ {[%clk 0:00:20]}  Kxg7 {[%clk 0:00:49]} 31. Qf3 {[%clk 0:00:20]}  Qe7 {[%clk 0:00:10]} 32. Qxe2 {[%clk 0:00:19]}  Nd4 {[%clk 0:00:09]} 33. Qd2 {[%clk 0:00:16]}  Nf5 {[%clk 0:00:08]} 34. Nxf5+ {[%clk 0:00:16]}  Bxf5 {[%clk 0:00:09]} 35. Bh6+ {[%clk 0:00:15]}  Kg8 {[%clk 0:00:09]} 36. Qf4 {[%clk 0:00:14]}  Rc8 {[%clk 0:00:08]} 37. Bg5 {[%clk 0:00:14]}  Qf8 {[%clk 0:00:07]} 38. g4 {[%clk 0:00:14]}  Be6 {[%clk 0:00:07]} 39. Bf6 {[%clk 0:00:14]}  Rc4 {[%clk 0:00:07]} 40. Qe3 {[%clk 0:00:13]}  Rxg4 {[%clk 0:00:06]} 41. Qxa7 {[%clk 0:00:13]}  Rc4 {[%clk 0:00:05]} 42. Rd1 {[%clk 0:00:12]}  Rc8 {[%clk 0:00:05]} 43. Qe3 {[%clk 0:00:10]}  h5 {[%clk 0:00:04]} 44. Qg5 {[%clk 0:00:09]}  Kh7 {[%clk 0:00:03]} 45. Be4 {[%clk 0:00:09]}  Kg8 {[%clk 0:00:00]} 46. Bxg6 {[%clk 0:00:08]} 1-0